[Event "*** Titled Tuesday Blitz"]
[Site "Chess.com"]
[Date "2020.04.14"]
[Round "8"]
[White "albano87"]
[Black "Kimster98"]
[Result "1/2-1/2"]
[WhiteElo "2220"]
[BlackElo "2545"]
[TimeControl "180+1"]
[EndTime "11:32:21 PDT"]
[Termination "Game drawn by agreement"]

1. d4 {[%clk 0:03:00.5]} 1... Nf6 {[%clk 0:02:58.8]} 2. Nf3 {[%clk 0:03:00.9]}
2... b6 {[%clk 0:02:57.5]} 3. g3 {[%clk 0:03:01]} 3... Bb7 {[%clk 0:02:52.9]} 4.
Bg2 {[%clk 0:03:01.9]} 4... g6 {[%clk 0:02:53.5]} 5. O-O {[%clk 0:03:01.8]} 5...
Bg7 {[%clk 0:02:54.1]} 6. a4 {[%clk 0:03:00.4]} 6... a5 {[%clk 0:02:48.8]} 7.
Re1 {[%clk 0:02:56.3]} 7... e6 {[%clk 0:02:42.7]} 8. Nc3 {[%clk 0:02:54.8]} 8...
Ne4 {[%clk 0:02:41.5]} 9. Qd3 {[%clk 0:02:47.7]} 9... Nxc3 {[%clk 0:02:39.6]}
10. Qxc3 {[%clk 0:02:46.5]} 10... d6 {[%clk 0:02:38.7]} 11. e4 {[%clk
0:02:45.5]} 11... Nd7 {[%clk 0:02:36.4]} 12. Bg5 {[%clk 0:02:44.8]} 12... f6
{[%clk 0:02:35.3]} 13. Be3 {[%clk 0:02:42]} 13... O-O {[%clk 0:02:34.1]} 14. Nd2
{[%clk 0:02:29.7]} 14... e5 {[%clk 0:02:26.8]} 15. Qd3 {[%clk 0:02:26.8]} 15...
Ba6 {[%clk 0:02:14.2]} 16. Qb3+ {[%clk 0:02:20]} 16... Kh8 {[%clk 0:02:13.1]}
17. c3 {[%clk 0:02:15.3]} 17... Qe7 {[%clk 0:02:05.3]} 18. Rad1 {[%clk
0:02:15.1]} 18... Bb7 {[%clk 0:02:02.4]} 19. Nc4 {[%clk 0:02:08.3]} 19... Qf7
{[%clk 0:01:53.3]} 20. Nd2 {[%clk 0:02:06.8]} 20... Qxb3 {[%clk 0:01:51.2]} 21.
Nxb3 {[%clk 0:02:07.7]} 21... Bc6 {[%clk 0:01:51.3]} 22. Ra1 {[%clk 0:01:59.5]}
22... Rae8 {[%clk 0:01:48.5]} 23. Nd2 {[%clk 0:01:55.4]} 23... Kg8 {[%clk
0:01:33.8]} 24. b4 {[%clk 0:01:49.6]} 24... Ra8 {[%clk 0:01:32.5]} 25. b5 {[%clk
0:01:47.8]} 25... Bb7 {[%clk 0:01:32.9]} 26. f4 {[%clk 0:01:47.6]} 26... f5
{[%clk 0:01:19.4]} 27. exf5 {[%clk 0:01:47.3]} 27... Bxg2 {[%clk 0:01:18.6]} 28.
Kxg2 {[%clk 0:01:47.4]} 28... Rxf5 {[%clk 0:01:17.8]} 29. Nc4 {[%clk 0:01:34.3]}
29... Re8 {[%clk 0:01:01.9]} 30. dxe5 {[%clk 0:01:31.2]} 30... dxe5 {[%clk
0:01:02.8]} 31. fxe5 {[%clk 0:01:22.9]} 31... Nxe5 {[%clk 0:01:01.1]} 32. Bf4
{[%clk 0:01:15.6]} 32... Kf7 {[%clk 0:00:45.9]} 33. Nxe5+ {[%clk 0:01:09.8]}
33... Bxe5 {[%clk 0:00:46.8]} 34. Bxe5 {[%clk 0:00:51.7]} 34... Rexe5 {[%clk
0:00:43.9]} 35. Rxe5 {[%clk 0:00:51.2]} 35... Rxe5 {[%clk 0:00:44.8]} 36. Rd1
{[%clk 0:00:49.8]} 36... Ke7 {[%clk 0:00:42.3]} 37. Rd4 {[%clk 0:00:38.9]} 37...
Re2+ {[%clk 0:00:36.9]} 38. Kh3 {[%clk 0:00:39]} 38... Rc2 {[%clk 0:00:23.5]}
39. Rc4 {[%clk 0:00:38]} 39... Kd6 {[%clk 0:00:23.7]} 40. g4 {[%clk 0:00:38.5]}
40... Rd2 {[%clk 0:00:19.1]} 41. Kg3 {[%clk 0:00:34]} 41... Rd5 {[%clk
0:00:15.8]} 42. Kf4 {[%clk 0:00:30.5]} 42... h6 {[%clk 0:00:14.4]} 43. h4 {[%clk
0:00:30.3]} 43... g5+ {[%clk 0:00:13.9]} 44. hxg5 {[%clk 0:00:30.7]} 44... hxg5+
{[%clk 0:00:14.5]} 45. Ke4 {[%clk 0:00:29.7]} 45... Re5+ {[%clk 0:00:15]} 46.
Kd4 {[%clk 0:00:26.5]} 46... Rd5+ {[%clk 0:00:15.6]} 47. Ke4 {[%clk 0:00:26.9]}
47... Re5+ {[%clk 0:00:16.1]} 48. Kd4 {[%clk 0:00:27]} 48... Re1 {[%clk
0:00:16.7]} 49. Rc6+ {[%clk 0:00:26.9]} 49... Kd7 {[%clk 0:00:16.9]} 50. Rg6
{[%clk 0:00:26.6]} 50... Ra1 {[%clk 0:00:16.9]} 51. Rxg5 {[%clk 0:00:26.1]}
51... Rxa4+ {[%clk 0:00:17.2]} 52. Kd5 {[%clk 0:00:25.9]} 52... Ra3 {[%clk
0:00:16.1]} 53. Rg7+ {[%clk 0:00:23.6]} 53... Kc8 {[%clk 0:00:16.1]} 54. c4
{[%clk 0:00:15.4]} 54... Kb7 {[%clk 0:00:13.7]} 55. c5 {[%clk 0:00:13.8]} 55...
bxc5 {[%clk 0:00:12]} 56. Kxc5 {[%clk 0:00:14.3]} 56... Rc3+ {[%clk 0:00:12.3]}
57. Kd4 {[%clk 0:00:14.6]} 57... Rb3 {[%clk 0:00:11.3]} 58. Kc5 {[%clk
0:00:13.6]} 58... a4 {[%clk 0:00:09.5]} 59. Rg6 {[%clk 0:00:13.4]} 59... a3
{[%clk 0:00:08]} 60. Ra6 {[%clk 0:00:13.4]} 60... Rg3 {[%clk 0:00:07.7]} 61. Ra4
{[%clk 0:00:11.4]} 61... Rc3+ {[%clk 0:00:04.8]} 62. Kb4 {[%clk 0:00:10.8]}
62... Rg3 {[%clk 0:00:05.4]} 63. Ka5 {[%clk 0:00:10.6]} 63... Ka7 {[%clk
0:00:04.9]} 64. Kb4+ {[%clk 0:00:10.1]} 64... Kb6 {[%clk 0:00:04.6]} 65. Ra6+
{[%clk 0:00:10.5]} 65... Kb7 {[%clk 0:00:04.7]} 66. Rxa3 {[%clk 0:00:10.9]}
66... Rxg4+ {[%clk 0:00:05.1]} 67. Ka5 {[%clk 0:00:11.3]} 67... Rg1 {[%clk
0:00:05.7]} 68. Ra2 {[%clk 0:00:11.2]} 68... Rb1 {[%clk 0:00:05.8]} 69. Ra3
{[%clk 0:00:11.3]} 69... Rb2 {[%clk 0:00:06.2]} 70. Ra4 {[%clk 0:00:11.4]} 70...
Rb3 {[%clk 0:00:06.7]} 71. Ra1 {[%clk 0:00:11.6]} 71... Rb2 {[%clk 0:00:07.1]}
72. Ra3 {[%clk 0:00:10.2]} 72... c6 {[%clk 0:00:06.8]} 73. bxc6+ {[%clk
0:00:10.3]} 73... Kxc6 {[%clk 0:00:07.7]} 74. Rc3+ {[%clk 0:00:10.4]} 74... Kd5
{[%clk 0:00:08.2]} 75. Rc7 {[%clk 0:00:09.7]} 75... Kd4 {[%clk 0:00:07.9]} 76.
Rc8 {[%clk 0:00:10]} 76... Rb1 {[%clk 0:00:07.6]} 77. Rc7 {[%clk 0:00:09.8]}
77... Kd5 {[%clk 0:00:08]} 78. Rc8 {[%clk 0:00:09.7]} 78... Kd6 {[%clk
0:00:08.5]} 79. Rc2 {[%clk 0:00:09.5]} 79... Rb3 {[%clk 0:00:08.5]} 80. Rc4
{[%clk 0:00:09.7]} 80... Rb2 {[%clk 0:00:08.7]} 81. Rc1 {[%clk 0:00:10.2]} 81...
Rb8 {[%clk 0:00:07]} 82. Rc2 {[%clk 0:00:10.1]} 82... Rb1 {[%clk 0:00:07]} 83.
Rc3 {[%clk 0:00:10.3]} 83... Ra1+ {[%clk 0:00:07.4]} 84. Kb4 {[%clk 0:00:10.2]}
84... Kd5 {[%clk 0:00:07.9]} 85. Rd3+ {[%clk 0:00:09.7]} 85... Ke4 {[%clk
0:00:07.9]} 86. Rd8 {[%clk 0:00:09.8]} 86... Rc1 {[%clk 0:00:07.9]} 87. Kb3
{[%clk 0:00:09.7]} 87... Rc7 {[%clk 0:00:07.4]} 1/2-1/2

[Event "*** Titled Tuesday Blitz"]
[Site "Chess.com"]
[Date "2020.04.14"]
[Round "8"]
[White "JacekDubiel"]
[Black "WhiteKnight2612"]
[Result "0-1"]
[WhiteElo "2430"]
[BlackElo "2687"]
[TimeControl "180+1"]
[EndTime "11:32:22 PDT"]
[Termination "WhiteKnight2612 won on time"]

1. e4 {[%clk 0:03:00.9]} 1... a6 {[%clk 0:03:00.2]} 2. d4 {[%clk 0:02:59.7]}
2... e6 {[%clk 0:03:01.1]} 3. Bd3 {[%clk 0:02:59.8]} 3... c5 {[%clk 0:03:00.1]}
4. Nf3 {[%clk 0:02:58.4]} 4... b5 {[%clk 0:02:59.1]} 5. c3 {[%clk 0:02:52.6]}
5... Bb7 {[%clk 0:02:58.5]} 6. O-O {[%clk 0:02:52.3]} 6... Nf6 {[%clk
0:02:56.3]} 7. Re1 {[%clk 0:02:52.1]} 7... Be7 {[%clk 0:02:55.4]} 8. e5 {[%clk
0:02:46.2]} 8... Nd5 {[%clk 0:02:55]} 9. dxc5 {[%clk 0:02:31.2]} 9... Bxc5
{[%clk 0:02:52.9]} 10. Nbd2 {[%clk 0:02:30.8]} 10... f5 {[%clk 0:02:50.5]} 11.
exf6 {[%clk 0:02:24.5]} 11... Nxf6 {[%clk 0:02:49.6]} 12. Ne4 {[%clk 0:02:10.4]}
12... Nxe4 {[%clk 0:02:46.4]} 13. Bxe4 {[%clk 0:02:11.3]} 13... Bxe4 {[%clk
0:02:45.6]} 14. Rxe4 {[%clk 0:02:12.2]} 14... O-O {[%clk 0:02:44.7]} 15. Be3
{[%clk 0:02:05.2]} 15... Bxe3 {[%clk 0:02:43.2]} 16. Rxe3 {[%clk 0:02:06.1]}
16... Nc6 {[%clk 0:02:42.1]} 17. Qd6 {[%clk 0:02:00.7]} 17... Rf7 {[%clk
0:02:39.3]} 18. Rd1 {[%clk 0:01:58.6]} 18... Qf6 {[%clk 0:02:32.3]} 19. Re2
{[%clk 0:01:46.5]} 19... Raf8 {[%clk 0:02:28.9]} 20. h3 {[%clk 0:01:41.6]} 20...
Qg6 {[%clk 0:02:28.1]} 21. Kh2 {[%clk 0:01:35.7]} 21... Rxf3 {[%clk 0:02:20.1]}
22. gxf3 {[%clk 0:01:35]} 22... Rf7 {[%clk 0:02:13.6]} 23. Rg1 {[%clk
0:01:19.4]} 23... Qf6 {[%clk 0:02:12.4]} 24. Rg3 {[%clk 0:01:15.5]} 24... h5
{[%clk 0:02:12.5]} 25. Re4 {[%clk 0:01:09.5]} 25... h4 {[%clk 0:02:10.3]} 26.
Rg2 {[%clk 0:01:05]} 26... Qh6 {[%clk 0:01:58.6]} 27. Reg4 {[%clk 0:00:50.7]}
27... Qf6 {[%clk 0:01:56.2]} 28. f4 {[%clk 0:00:46.9]} 28... Kh7 {[%clk
0:01:48.8]} 29. Qd3+ {[%clk 0:00:45.2]} 29... Kg8 {[%clk 0:01:44.3]} 30. Qg6
{[%clk 0:00:45.1]} 30... Qxg6 {[%clk 0:01:38.7]} 31. Rxg6 {[%clk 0:00:44.7]}
31... Ne7 {[%clk 0:01:36.3]} 32. R6g4 {[%clk 0:00:37.5]} 32... Nf5 {[%clk
0:01:36.1]} 33. Rg1 {[%clk 0:00:38]} 33... d5 {[%clk 0:01:30.8]} 34. Re1 {[%clk
0:00:36.7]} 34... Rf6 {[%clk 0:01:30.6]} 35. Re5 {[%clk 0:00:30]} 35... Kf7
{[%clk 0:01:30.6]} 36. Rg1 {[%clk 0:00:27.3]} 36... Nd6 {[%clk 0:01:26]} 37.
Reg5 {[%clk 0:00:15.2]} 37... Nf5 {[%clk 0:01:23]} 38. Kg2 {[%clk 0:00:15.6]}
38... g6 {[%clk 0:01:11.9]} 39. Kf3 {[%clk 0:00:15.4]} 39... Nd6 {[%clk
0:00:42.5]} 40. Re1 {[%clk 0:00:14.6]} 40... Nf5 {[%clk 0:00:40.6]} 41. Reg1
{[%clk 0:00:14.5]} 41... Kg7 {[%clk 0:00:38.1]} 42. Re1 {[%clk 0:00:14.3]} 42...
Kh6 {[%clk 0:00:38.3]} 43. Rg4 {[%clk 0:00:06.7]} 43... Kg7 {[%clk 0:00:36.3]}
44. Re5 {[%clk 0:00:06.6]} 44... Kf7 {[%clk 0:00:35.2]} 45. Rg5 {[%clk
0:00:06.5]} 45... Kg7 {[%clk 0:00:30.4]} 46. Rg4 {[%clk 0:00:06.7]} 46... Kf7
{[%clk 0:00:29.5]} 47. Rg5 {[%clk 0:00:07.1]} 47... Ke7 {[%clk 0:00:27.9]} 48.
Rg4 {[%clk 0:00:07.5]} 48... Kd6 {[%clk 0:00:27.6]} 49. Rg5 {[%clk 0:00:07.7]}
49... a5 {[%clk 0:00:27]} 50. Rg4 {[%clk 0:00:07.6]} 50... Kc6 {[%clk
0:00:26.1]} 51. Rg1 {[%clk 0:00:07.1]} 51... Kd7 {[%clk 0:00:23.8]} 52. Rge1
{[%clk 0:00:07.1]} 52... Nd6 {[%clk 0:00:22.3]} 53. Rg1 {[%clk 0:00:06.5]} 53...
Nc4 {[%clk 0:00:19.4]} 54. Re2 {[%clk 0:00:05.6]} 54... e5 {[%clk 0:00:18.8]}
55. Rg4 {[%clk 0:00:05.7]} 55... e4+ {[%clk 0:00:17.9]} 56. Kg2 {[%clk
0:00:05.9]} 56... Nd6 {[%clk 0:00:15.7]} 57. Rxh4 {[%clk 0:00:06.3]} 57... Nf5
{[%clk 0:00:16.6]} 58. Rg4 {[%clk 0:00:06.7]} 58... Kc6 {[%clk 0:00:16.5]} 59.
h4 {[%clk 0:00:06.9]} 59... Nh6 {[%clk 0:00:15]} 60. Rg5 {[%clk 0:00:06.7]}
60... Nf7 {[%clk 0:00:15.3]} 61. Rg4 {[%clk 0:00:06.4]} 61... Nd6 {[%clk
0:00:15.8]} 62. Kh3 {[%clk 0:00:05.3]} 62... Kc5 {[%clk 0:00:15.5]} 63. Re1
{[%clk 0:00:05.5]} 63... Kc4 {[%clk 0:00:15]} 64. Rd1 {[%clk 0:00:05.7]} 64...
Kc5 {[%clk 0:00:15.1]} 65. Re1 {[%clk 0:00:05.4]} 65... Nc4 {[%clk 0:00:14.8]}
66. b3 {[%clk 0:00:04.1]} 66... Nb2 {[%clk 0:00:13.1]} 67. Reg1 {[%clk
0:00:04.6]} 67... Nd3 {[%clk 0:00:13]} 68. Rxg6 {[%clk 0:00:04.9]} 68... Nxf4+
{[%clk 0:00:11.6]} 69. Kg4 {[%clk 0:00:04.9]} 69... Nxg6 {[%clk 0:00:12.5]} 70.
Kg5 {[%clk 0:00:04.9]} 70... Rc6 {[%clk 0:00:12]} 71. h5 {[%clk 0:00:05.4]}
71... Ne5 {[%clk 0:00:12.2]} 72. h6 {[%clk 0:00:05.6]} 72... Nf7+ {[%clk
0:00:12.5]} 73. Kf4 {[%clk 0:00:05.9]} 73... Rxh6 {[%clk 0:00:12.6]} 74. Rg7
{[%clk 0:00:05.1]} 74... Rf6+ {[%clk 0:00:12.6]} 75. Ke3 {[%clk 0:00:04.6]}
75... Rf3+ {[%clk 0:00:13.5]} 76. Ke2 {[%clk 0:00:04.4]} 76... Ne5 {[%clk
0:00:14.4]} 77. Rc7+ {[%clk 0:00:03.9]} 77... Kd6 {[%clk 0:00:14.4]} 78. Ra7
{[%clk 0:00:03.9]} 78... Rxc3 {[%clk 0:00:13.7]} 79. Rxa5 {[%clk 0:00:03.5]}
79... Nd3 {[%clk 0:00:13.6]} 80. Rxb5 {[%clk 0:00:02]} 80... d4 {[%clk
0:00:13.6]} 81. f4 {[%clk 0:00:01.5]} 81... Rc2+ {[%clk 0:00:13.3]} 82. Kd1
{[%clk 0:00:01.7]} 82... Rxa2 {[%clk 0:00:13]} 83. f5 {[%clk 0:00:01.5]} 83...
e3 {[%clk 0:00:12.9]} 0-1

[Event "*** Titled Tuesday Blitz"]
[Site "Chess.com"]
[Date "2020.04.14"]
[Round "8"]
[White "124chess"]
[Black "IMTominho"]
[Result "1/2-1/2"]
[WhiteElo "2640"]
[BlackElo "2832"]
[TimeControl "180+1"]
[EndTime "11:32:36 PDT"]
[Termination "Game drawn by agreement"]

1. e4 {[%clk 0:03:00.9]} 1... e5 {[%clk 0:02:57.5]} 2. Nf3 {[%clk 0:03:00.9]}
2... Nf6 {[%clk 0:02:55.9]} 3. d3 {[%clk 0:02:58.3]} 3... Nc6 {[%clk 0:02:55.3]}
4. Be2 {[%clk 0:02:57.9]} 4... d5 {[%clk 0:02:55.4]} 5. Nbd2 {[%clk 0:02:57.6]}
5... Bc5 {[%clk 0:02:55.9]} 6. c3 {[%clk 0:02:57.5]} 6... a5 {[%clk 0:02:55.1]}
7. O-O {[%clk 0:02:57.9]} 7... O-O {[%clk 0:02:53.9]} 8. Re1 {[%clk 0:02:44.9]}
8... a4 {[%clk 0:02:47.6]} 9. Qc2 {[%clk 0:02:36.9]} 9... Re8 {[%clk 0:02:40.7]}
10. h3 {[%clk 0:02:37.1]} 10... b6 {[%clk 0:02:33.3]} 11. Rb1 {[%clk 0:02:37.3]}
11... Bb7 {[%clk 0:02:31.7]} 12. b4 {[%clk 0:02:37.2]} 12... axb3 {[%clk
0:02:32.3]} 13. axb3 {[%clk 0:02:37.7]} 13... Nh5 {[%clk 0:02:24.8]} 14. b4
{[%clk 0:02:34.2]} 14... Bf8 {[%clk 0:02:24.4]} 15. exd5 {[%clk 0:02:22.6]}
15... Qxd5 {[%clk 0:02:22.8]} 16. Ne4 {[%clk 0:02:22.7]} 16... Ra2 {[%clk
0:02:10.3]} 17. Rb2 {[%clk 0:02:17]} 17... Rxb2 {[%clk 0:02:10.2]} 18. Bxb2
{[%clk 0:02:17.5]} 18... h6 {[%clk 0:02:07.6]} 19. Bf1 {[%clk 0:02:11.4]} 19...
Nf4 {[%clk 0:02:04.8]} 20. Bc1 {[%clk 0:02:03.1]} 20... Ng6 {[%clk 0:02:00.1]}
21. Ng3 {[%clk 0:02:00.3]} 21... Rd8 {[%clk 0:01:56.1]} 22. Bd2 {[%clk
0:01:20.7]} 22... Qd7 {[%clk 0:01:51.5]} 23. b5 {[%clk 0:01:11]} 23... Na7
{[%clk 0:01:43.2]} 24. Nxe5 {[%clk 0:01:09.8]} 24... Nxe5 {[%clk 0:01:44.1]} 25.
Rxe5 {[%clk 0:01:10.4]} 25... Nxb5 {[%clk 0:01:44.6]} 26. d4 {[%clk 0:01:05]}
26... Nd6 {[%clk 0:01:44.3]} 27. Nh5 {[%clk 0:00:50.8]} 27... Ne8 {[%clk
0:01:33.2]} 28. Bb5 {[%clk 0:00:42]} 28... Bc6 {[%clk 0:01:30.4]} 29. Bxc6
{[%clk 0:00:41.2]} 29... Qxc6 {[%clk 0:01:31.3]} 30. Qd3 {[%clk 0:00:33.5]}
30... Nf6 {[%clk 0:01:28.5]} 31. Nxf6+ {[%clk 0:00:27.4]} 31... Qxf6 {[%clk
0:01:29.4]} 32. Re1 {[%clk 0:00:21.8]} 32... c6 {[%clk 0:01:25.2]} 33. Qe4
{[%clk 0:00:17.5]} 33... b5 {[%clk 0:01:23.6]} 34. Bf4 {[%clk 0:00:18]} 34... b4
{[%clk 0:00:57.1]} 35. Be5 {[%clk 0:00:16.3]} 35... Qe6 {[%clk 0:00:57.3]} 36.
cxb4 {[%clk 0:00:16.6]} 36... Bxb4 {[%clk 0:00:58.2]} 37. Rf1 {[%clk 0:00:13.9]}
37... f6 {[%clk 0:00:54.2]} 38. Qg6 {[%clk 0:00:12.3]} 38... Qf7 {[%clk
0:00:54.2]} 39. Qb1 {[%clk 0:00:10.5]} 39... Bf8 {[%clk 0:00:52.9]} 40. Bg3
{[%clk 0:00:09.7]} 40... Rxd4 {[%clk 0:00:52.9]} 41. Rc1 {[%clk 0:00:10.4]}
41... c5 {[%clk 0:00:51.7]} 42. Qb8 {[%clk 0:00:10.9]} 42... Kh7 {[%clk
0:00:50]} 43. Re1 {[%clk 0:00:10.6]} 43... c4 {[%clk 0:00:31.4]} 44. Re8 {[%clk
0:00:10.7]} 44... Bc5 {[%clk 0:00:31.6]} 45. Rh8+ {[%clk 0:00:10.6]} 45... Kg6
{[%clk 0:00:31.6]} 46. h4 {[%clk 0:00:10.9]} 46... h5 {[%clk 0:00:29.9]} 47. Qa8
{[%clk 0:00:08.4]} 47... c3 {[%clk 0:00:25.3]} 48. Qf3 {[%clk 0:00:08.1]} 48...
Qd5 {[%clk 0:00:25.3]} 49. Qxc3 {[%clk 0:00:08.2]} 49... Qf5 {[%clk 0:00:20.9]}
50. Qc1 {[%clk 0:00:06.2]} 50... Bd6 {[%clk 0:00:15.3]} 51. Qc8 {[%clk
0:00:05.5]} 51... Qe4 {[%clk 0:00:06.8]} 52. Qe8+ {[%clk 0:00:05.1]} 52... Qxe8
{[%clk 0:00:06.3]} 53. Rxe8 {[%clk 0:00:06]} 53... Rd1+ {[%clk 0:00:06.6]} 54.
Kh2 {[%clk 0:00:06.1]} 54... Bc5 {[%clk 0:00:07.5]} 55. Re2 {[%clk 0:00:04.9]}
55... Rd4 {[%clk 0:00:07.7]} 56. f3 {[%clk 0:00:05]} 56... Bb4 {[%clk
0:00:07.6]} 57. Kh3 {[%clk 0:00:05.3]} 57... Rc4 {[%clk 0:00:08]} 58. Bf2 {[%clk
0:00:05.6]} 58... Bd6 {[%clk 0:00:07.4]} 59. g4 {[%clk 0:00:05.7]} 59... hxg4+
{[%clk 0:00:07.3]} 60. fxg4 {[%clk 0:00:06.6]} 60... Rc3+ {[%clk 0:00:07.7]} 61.
Re3 {[%clk 0:00:06.4]} 61... Rc2 {[%clk 0:00:07.5]} 62. Rf3 {[%clk 0:00:06.8]}
62... Kf7 {[%clk 0:00:06.8]} 63. Bg3 {[%clk 0:00:07]} 63... Bc5 {[%clk 0:00:07]}
64. g5 {[%clk 0:00:06.9]} 64... Bd4 {[%clk 0:00:07.3]} 65. gxf6 {[%clk
0:00:07.3]} 65... gxf6 {[%clk 0:00:08.1]} 66. Kg4 {[%clk 0:00:06.9]} 66... Ba1
{[%clk 0:00:06]} 67. h5 {[%clk 0:00:07.1]} 67... Rc4+ {[%clk 0:00:05.9]} 68. Rf4
{[%clk 0:00:07.4]} 68... Rc5 {[%clk 0:00:06.4]} 69. Rf5 {[%clk 0:00:05.1]} 69...
Rc4+ {[%clk 0:00:06.3]} 70. Rf4 {[%clk 0:00:05.7]} 70... Rc5 {[%clk 0:00:06.6]}
71. Rf5 {[%clk 0:00:06.1]} 71... Rc2 {[%clk 0:00:06.9]} 72. Rf2 {[%clk 0:00:05]}
72... Rc1 {[%clk 0:00:06.4]} 73. Rh2 {[%clk 0:00:05]} 73... Rc4+ {[%clk
0:00:06.2]} 74. Kf3 {[%clk 0:00:04.5]} 74... Kg7 {[%clk 0:00:05.1]} 75. h6+
{[%clk 0:00:04.2]} 75... Kh7 {[%clk 0:00:05.6]} 76. Rh3 {[%clk 0:00:04.5]} 76...
Rc3+ {[%clk 0:00:04.6]} 77. Kg4 {[%clk 0:00:04.5]} 77... Rc5 {[%clk 0:00:05.5]}
78. Bf4 {[%clk 0:00:04.3]} 78... Bc3 {[%clk 0:00:04.3]} 79. Rd3 {[%clk
0:00:04.3]} 79... Kg6 {[%clk 0:00:03.8]} 80. Rd7 {[%clk 0:00:04.2]} 80... f5+
{[%clk 0:00:04.2]} 81. Kf3 {[%clk 0:00:04.3]} 81... Bf6 {[%clk 0:00:05.1]} 82.
Rd6 {[%clk 0:00:04.6]} 82... Rc3+ {[%clk 0:00:05.4]} 83. Kf2 {[%clk 0:00:05]}
83... Rc2+ {[%clk 0:00:05.3]} 84. Kf3 {[%clk 0:00:05.1]} 84... Rc3+ {[%clk
0:00:05.7]} 85. Ke2 {[%clk 0:00:05.5]} 85... Rc2+ {[%clk 0:00:05]} 86. Kd3
{[%clk 0:00:05.6]} 86... Rc3+ {[%clk 0:00:05.4]} 87. Kd2 {[%clk 0:00:05.5]}
87... Rc5 {[%clk 0:00:05.8]} 88. Ke3 {[%clk 0:00:04.9]} 88... Rc3+ {[%clk
0:00:04.8]} 89. Kd2 {[%clk 0:00:04.9]} 89... Rc5 {[%clk 0:00:04.9]} 90. Be3
{[%clk 0:00:04.9]} 90... Rc4 {[%clk 0:00:04.4]} 91. Kd3 {[%clk 0:00:04.8]} 91...
Re4 {[%clk 0:00:04.7]} 92. Bd2 {[%clk 0:00:02.6]} 92... Kf7 {[%clk 0:00:04.1]}
93. h7 {[%clk 0:00:02.2]} 93... Rh4 {[%clk 0:00:04.4]} 94. Rxf6+ {[%clk
0:00:02.5]} 94... Kxf6 {[%clk 0:00:04.7]} 95. h8=Q+ {[%clk 0:00:03.4]} 95...
Rxh8 {[%clk 0:00:04.2]} 96. Bc3+ {[%clk 0:00:04.3]} 96... Kg5 {[%clk 0:00:04.9]}
97. Bxh8 {[%clk 0:00:05.2]} 97... Kg4 {[%clk 0:00:05.8]} 98. Ke2 {[%clk
0:00:05.5]} 98... Kg3 {[%clk 0:00:05.9]} 99. Kf1 {[%clk 0:00:06.4]} 99... Kf3
{[%clk 0:00:06.2]} 100. Bd4 {[%clk 0:00:07.3]} 100... Ke4 {[%clk 0:00:06.8]}
101. Bf2 {[%clk 0:00:08.2]} 101... Kd3 {[%clk 0:00:07.1]} 102. Bg1 {[%clk
0:00:09.1]} 102... Ke4 {[%clk 0:00:08]} 103. Bf2 {[%clk 0:00:10]} 103... Kf3
{[%clk 0:00:08.9]} 104. Bg1 {[%clk 0:00:10.9]} 104... Kg4 {[%clk 0:00:09.5]}
105. Bf2 {[%clk 0:00:11.8]} 105... Kh3 {[%clk 0:00:09.8]} 106. Bg1 {[%clk
0:00:12.7]} 1/2-1/2